bitfinex-derivatives/quotes_SOLF0:USTF0_20250730
["timestamp","ask_amount","ask_price","bid_price","bid_amount"]
[1753881276619,5.84724455,177.58,177.48,3.3]
[1753881276925,3.1,177.63,177.51,3.3]
[1753881277123,3.1,177.63,177.53,8.91156027]
[1753881277316,3.1,177.63,177.54,3.3]
[1753881278024,8.91156027,177.63,177.54,3.3]
[1753881278223,3.1,177.62,177.54,3.3]
[1753881279124,3.1,177.59,177.51,3.3]
[1753881280320,5.6316,177.58,177.51,5.6334]
[1753881280520,3.1,177.59,177.52,3.3]
[1753881280722,3.1,177.62,177.52,3.3]
[1753881281318,4.71470762,177.67,177.52,3.3]
[1753881281319,3.1,177.65,177.53,8.91156027]
[1753881281519,4.16478109,177.64,177.57,3.3]
[1753881281720,4.71470762,177.7,177.62,8.91156027]
[1753881281925,4.16104589,177.69,177.63,3.3]
[1753881282228,4.16104589,177.68,177.66,3.3]
[1753881282423,10.34160762,177.72,177.66,3.3]
[1753881282629,4.15832331,177.71,177.66,3.3]
[1753881282832,4.15832331,177.7,177.66,3.3]
[1753881283029,4.15832331,177.69,177.68,3.3]
[1753881284132,5.6266,177.74,177.68,3.3]
[1753881284431,4.14844752,177.73,177.65,8.91156027]
[1753881284625,4.14844752,177.72,177.66,3.3]
[1753881284826,7.24844752,177.71,177.67,3.3]
[1753881285025,5.6278,177.7,177.67,3.3]
[1753881285227,3.1,177.71,177.65,8.91156027]
[1753881285420,3.1,177.71,177.68,3.3]
[1753881285830,5.6273,177.71,177.66,3.3]
[1753881286029,3.1,177.74,177.66,3.3]
[1753881286331,3.1,177.77,177.69,3.3]
[1753881286529,4.14943294,177.76,177.69,3.3]
[1753881286722,3.1,177.79,177.69,3.3]
[1753881286920,4.15059067,177.78,177.71,8.91156027]
[1753881287120,7.25059067,177.77,177.71,3.3]
[1753881287329,3.1,177.77,177.71,3.3]
[1753881287528,3.1,177.77,177.68,14.53966027]
[1753881287529,5.6261,177.75,177.68,14.53966027]
[1753881287730,5.6261,177.75,177.72,3.3]
[1753881287925,3.1,177.77,177.72,3.3]
[1753881287926,5.6263,177.74,177.72,3.3]
[1753881288323,3.1,177.81,177.7,3.3]
[1753881288524,3.1,177.79,177.7,3.3]
[1753881288924,3.1,177.78,177.7,3.3]
[1753881289626,4.15830802,177.77,177.7,3.3]
[1753881289833,3.1,177.75,177.67,3.3]
[1753881290327,5.6278,177.7,177.65,8.91156027]
[1753881290533,3.1,177.73,177.66,3.3]
[1753881290832,3.1,177.73,177.65,8.91156027]
[1753881291032,3.1,177.73,177.66,3.3]
[1753881292137,5.6285,177.67,177.66,3.3]
[1753881292741,3.1,177.71,177.63,318.66]
[1753881293238,5.6294,177.64,177.63,318.66]
[1753881293532,3.1,177.68,177.62,3.3]
[1753881293722,3.1,177.71,177.62,3.3]
[1753881293929,3.1,177.74,177.64,3.3]
[1753881294223,5.6278,177.7,177.66,8.91156027]
[1753881294425,3.1,177.75,177.67,3.3]
[1753881294624,3.1,177.8,177.69,8.91156027]
[1753881294828,4.29789733,177.79,177.7,3.3]
[1753881295036,3.1,177.8,177.7,3.3]
[1753881296328,5.6269,177.73,177.7,3.3]
[1753881296526,3.1,177.8,177.7,3.3]
[1753881296731,8.91156027,177.78,177.7,3.3]
[1753881296932,5.6272,177.71,177.7,3.3]
[1753881298841,3.16,177.78,177.69,3.23]
[1753881299140,13.62626789,177.84,177.72,3.23]
[1753881299336,5.6254,177.77,177.76,3.23]
[1753881299531,3.16,177.82,177.71,8.91156027]
[1753881299737,5.6259,177.76,177.71,8.91156027]
[1753881299936,3.16,177.79,177.73,3.23]
[1753881300338,3.16,177.83,177.75,8.91156027]
[1753881300635,4.71470762,177.87,177.75,8.91156027]
[1753881300636,3.16,177.86,177.76,3.23]
[1753881300835,3.16,177.84,177.76,3.23]
[1753881301438,3.16,177.87,177.79,3.23]
[1753881301644,4.32638055,177.86,177.79,3.23]
[1753881301850,3.16,177.87,177.79,3.23]
[1753881302043,4.32641357,177.86,177.79,3.23]
[1753881302245,3.16,177.87,177.79,3.23]
[1753881302450,3.16,177.85,177.76,3.23]
[1753881302647,3.16,177.83,177.76,3.23]
[1753881302844,5.6249,177.79,177.76,3.23]
[1753881303048,3.16,177.83,177.77,3.23]
[1753881303549,4.71470762,177.87,177.79,3.23]
[1753881303550,4.63278899,177.87,177.79,3.23]
[1753881303747,4.33203498,177.86,177.81,8.91156027]
[1753881303948,3.16,177.89,177.82,3.23]
[1753881304246,4.33012586,177.88,177.82,3.23]
[1753881304547,4.33012586,177.87,177.81,8.91156027]
[1753881304749,3.16,177.86,177.83,3.23]
[1753881304952,5.6243,177.81,177.8,3.23]
[1753881305853,3.16,177.84,177.77,3.23]
[1753881306250,4.33533818,177.83,177.77,3.23]
[1753881306451,4.34039202,177.82,177.75,8.91156027]
[1753881306749,3.16,177.84,177.76,3.23]
[1753881306956,5.6253,177.77,177.76,3.23]
[1753881307154,3.16,177.82,177.75,3.23]
[1753881307455,5.6253,177.78,177.75,3.23]
[1753881307657,13.54434926,177.83,177.75,3.23]
[1753881307855,5.6256,177.76,177.75,3.23]
[1753881308557,5.6256,177.77,177.76,3.23]
[1753881308752,9.97395109,177.77,177.76,3.23]
[1753881308945,5.6256,177.77,177.76,3.23]
[1753881309344,9.9739148,177.77,177.76,3.23]
[1753881309545,4.3483148,177.77,177.68,8.91156027]
[1753881309853,7.5083148,177.76,177.72,3.23]
[1753881310053,4.3483148,177.75,177.72,3.23]
[1753881310351,7.5083148,177.75,177.72,3.23]
[1753881310554,3.16,177.78,177.69,3.23]
[1753881310754,4.34882153,177.77,177.69,3.23]
[1753881310954,3.16,177.78,177.69,3.23]
[1753881310955,4.34882153,177.76,177.69,3.23]
[1753881311158,4.34882153,177.75,177.69,3.23]
[1753881311354,5.6271,177.72,177.69,3.23]
[1753881311656,4.63278899,177.78,177.68,3.23]
[1753881311850,5.6268,177.73,177.68,5.6279]
[1753881312046,3.16,177.77,177.69,3.23]
[1753881312255,3.16,177.75,177.69,3.23]
[1753881312459,3.16,177.73,177.66,421.58]
[1753881312750,3.16,177.73,177.67,3.23]
[1753881313157,7.79278899,177.77,177.68,3.23]
[1753881313359,4.34631303,177.76,177.71,3.23]
[1753881313652,4.34631303,177.75,177.7,8.91156027]
[1753881313847,3.16,177.77,177.73,3.23]
[1753881314048,7.50434271,177.76,177.73,3.23]
[1753881314250,5.6263,177.74,177.73,3.23]
[1753881314546,3.16,177.76,177.69,3.23]
[1753881314750,5.6272,177.72,177.69,3.23]
[1753881314950,5.853467,177.76,177.7,3.23]
[1753881315157,4.34046312,177.75,177.69,3.23]
[1753881315355,4.34056244,177.74,177.69,3.23]
[1753881315554,3.16,177.76,177.69,3.23]
[1753881315752,3.16,177.79,177.71,3.23]
[1753881315946,5.6256,177.77,177.73,3.23]
[1753881316354,5.6256,177.77,177.75,3.23]
[1753881316554,5.6256,177.77,177.76,3.23]
[1753881317653,3.16,177.8,177.73,3.23]
[1753881317848,4.34057444,177.79,177.73,3.23]
[1753881318050,5.6242,177.81,177.75,3.23]
[1753881318256,3.16,177.83,177.77,3.23]
[1753881318551,4.34231915,177.82,177.77,3.23]
[1753881318755,3.16,177.83,177.77,3.23]
[1753881319057,4.34424775,177.82,177.76,11.478867]
[1753881319251,3.16,177.83,177.77,3.23]
[1753881319457,4.3454392,177.82,177.76,11.478867]
[1753881319652,5.624,177.81,177.79,3.23]
[1753881319862,4.63278899,177.88,177.8,5.853467]
[1753881320055,4.34596618,177.87,177.81,3.23]
[1753881320561,7.50596618,177.87,177.81,3.23]
[1753881320762,4.34596618,177.86,177.8,5.853467]
[1753881320956,3.16,177.86,177.8,3.23]
[1753881321157,4.34778524,177.85,177.8,3.23]
[1753881321359,5.624,177.81,177.8,3.23]
[1753881321960,9.013467,177.87,177.79,3.23]
[1753881322161,4.35100057,177.86,177.83,3.23]
[1753881322361,4.63278899,177.91,177.83,3.23]
[1753881322561,5.6224,177.87,177.83,5.6232]
[1753881322959,3.16,177.9,177.86,3.23]
[1753881323153,3.16,177.93,177.85,3.23]
[1753881323359,4.34898376,177.92,177.85,3.23]
[1753881323653,5.6211,177.91,177.88,3.23]
[1753881323859,3.16,177.93,177.9,3.23]
[1753881324261,3.16,177.97,177.89,3.23]
[1753881324456,4.34928794,177.96,177.89,3.23]
[1753881324663,10.48625599,177.99,177.92,3.23]
[1753881324664,3.16,177.99,177.92,3.23]
[1753881325057,3.16,178.01,177.93,3.23]
[1753881325458,3.16,178.01,177.94,5.853467]
[1753881325663,5.6186,177.99,177.95,3.23]
[1753881325861,3.16,178.01,177.98,3.23]
[1753881326061,3.16,178.01,177.99,3.23]
[1753881326259,3.16,178.08,178.0,3.23]
[1753881326563,3.16,178.08,178.01,3.23]
[1753881326765,5.6171,178.04,177.99,14.47869296]
[1753881326966,5.6171,178.04,178.03,3.23]
[1753881327166,8.9077,178.02,178.0,3.23]
[1753881327555,3.29,178.08,178.0,3.23]
[1753881328759,3.29,178.08,177.98,106.42]
[1753881328760,3.29,178.11,178.02,8.86039296]
[1753881328968,4.20265266,178.1,178.03,3.23]
[1753881329156,3.29,178.11,178.03,3.23]
[1753881329667,3.29,178.09,178.0,3.23]
[1753881329964,8.86039296,178.09,178.01,3.23]
[1753881330163,3.29,178.08,177.98,3.23]
[1753881330460,3.29,178.02,177.94,3.23]
[1753881330861,5.6199,177.94,177.93,315.04]
[1753881331062,3.29,177.99,177.91,3.23]
[1753881331964,5.6202,177.94,177.91,3.23]
[1753881332161,3.29,177.99,177.92,3.23]
[1753881332859,3.29,178.04,177.94,8.86039296]
[1753881333065,4.1997016,178.03,177.95,3.23]
[1753881333265,3.29,178.02,177.95,3.23]
[1753881333562,5.6193,177.96,177.95,3.23]
[1753881333867,3.29,178.0,177.95,3.23]
[1753881334075,5.619,177.97,177.95,3.23]
[1753881335063,3.29,178.04,177.96,3.23]
[1753881335367,5.618,178.01,177.99,3.23]
[1753881335661,3.29,178.06,178.0,3.23]
[1753881335866,5.6176,178.02,178.01,3.23]
[1753881336061,3.29,178.08,177.98,3.23]
[1753881336262,8.86039296,178.09,177.98,3.23]
[1753881336263,3.29,178.06,177.98,3.23]
[1753881336462,8.86039296,178.09,177.98,3.23]
[1753881336664,9.51000709,178.13,177.98,3.23]
[1753881336665,4.63278899,178.13,178.04,3.23]
[1753881336965,5.6151,178.1,178.04,8.8466]
[1753881337270,3.29,178.16,178.07,3.23]
[1753881337567,4.19679133,178.15,178.07,3.23]
[1753881337768,4.19679133,178.14,178.07,3.23]
[1753881337967,3.29,178.16,178.07,3.23]
[1753881338165,5.6149,178.11,178.08,3.23]
[1753881338366,3.29,178.14,178.07,3.23]
[1753881338566,5.6142,178.13,178.07,3.23]
[1753881338769,3.29,178.15,178.07,3.23]
[1753881339165,3.29,178.15,178.09,3.23]
[1753881339166,5.6142,178.13,178.09,3.23]
[1753881339472,3.29,178.18,178.1,3.23]
[1753881339770,3.29,178.16,178.1,3.23]
[1753881340670,5.6135,178.15,178.1,3.23]
[1753881340871,3.29,178.16,178.1,3.23]
[1753881341169,3.29,178.16,178.07,3.23]
[1753881341570,8.86039296,178.15,178.05,3.23]
[1753881341769,3.29,178.14,178.03,8.86039296]
[1753881341964,8.86039296,178.09,178.02,3.23]
[1753881342270,8.86039296,178.06,177.94,3.23]
[1753881342468,3.29,178.02,177.83,314.68]
[1753881342774,3.29,177.99,177.89,3.23]
[1753881343274,3.29,177.93,177.84,3.23]
[1753881343463,3.29,177.93,177.83,314.68]
[1753881343669,8.86039296,177.91,177.79,8.86039296]
[1753881343866,3.29,177.84,177.73,314.64]
[1753881344067,3.29,177.84,177.74,3.23]
[1753881344270,3.29,177.84,177.73,314.64]
[1753881344271,3.29,177.83,177.73,314.64]
[1753881344765,3.29,177.83,177.74,3.23]
[1753881345466,3.29,177.8,177.71,3.23]
[1753881345674,3.29,177.77,177.71,3.23]
[1753881345970,3.29,177.77,177.7,106.82]
[1753881346368,5.6259,177.76,177.71,3.23]
[1753881346564,8.86039296,177.78,177.72,3.23]
[1753881346768,3.29,177.74,177.7,106.82]
[1753881346970,3.29,177.74,177.64,3.23]
[1753881347274,3.29,177.74,177.53,62.0]
[1753881347275,3.29,177.71,177.6,3.23]
[1753881347471,3.29,177.79,177.62,3.23]
[1753881347679,3.29,177.74,177.62,3.23]
[1753881348170,3.29,177.74,177.65,3.23]
[1753881348377,3.29,177.77,177.65,3.23]
[1753881348674,3.29,177.71,177.62,3.23]
[1753881349071,3.29,177.71,177.64,8.86039296]
[1753881349273,3.29,177.74,177.65,3.23]
[1753881349772,3.29,177.68,177.64,3.23]
[1753881349972,3.29,177.67,177.64,3.23]
[1753881350371,3.29,177.69,177.6,110.47]
[1753881350878,8.86039296,177.74,177.61,3.23]
[1753881351172,8.86039296,177.74,177.62,8.86039296]
[1753881351372,3.29,177.81,177.69,3.23]
[1753881351572,4.17976525,177.8,177.72,3.23]
[1753881351770,7.46976525,177.79,177.72,3.23]
[1753881351965,8.86039296,177.84,177.72,3.23]
[1753881352169,11.58570661,177.83,177.72,3.23]
[1753881352371,3.29,177.83,177.75,3.23]
[1753881353070,3.29,177.88,177.78,3.23]
[1753881353272,4.11298828,177.87,177.78,3.23]
[1753881353467,3.29,177.88,177.78,3.23]
[1753881353669,4.11333866,177.87,177.78,3.23]
[1753881353866,3.29,177.87,177.8,8.86039296]
[1753881354065,4.11357408,177.86,177.81,3.23]
[1753881354265,3.29,177.92,177.84,3.23]
[1753881354266,4.11357408,177.85,177.84,3.23]
[1753881354475,3.29,177.92,177.84,3.23]
[1753881354672,8.33186187,177.91,177.84,3.23]
[1753881354974,7.92278899,177.95,177.87,3.23]
[1753881355170,3.29,177.95,177.87,3.23]
[1753881355571,3.29,177.93,177.83,8.86039296]
[1753881355771,3.29,177.93,177.84,3.23]
[1753881356572,3.29,177.91,177.8,3.23]
[1753881356873,3.29,177.96,177.83,3.23]
[1753881357180,3.29,177.94,177.86,3.28]
[1753881357374,3.29,177.97,177.89,3.28]
[1753881357570,8.86039296,178.02,177.89,3.28]
[1753881357775,3.29,177.98,177.89,3.28]
[1753881358474,3.29,177.98,177.92,3.28]
[1753881358671,3.29,177.98,177.88,3.28]
[1753881358871,8.9099,177.95,177.88,8.9016]
[1753881359070,3.29,177.95,177.88,8.9016]
[1753881359272,3.29,177.95,177.88,3.28]
[1753881359767,3.29,177.98,177.9,8.86039296]
[1753881359967,3.29,177.98,177.91,3.28]
[1753881360375,5.619,177.97,177.91,3.28]
[1753881360974,3.29,178.01,177.91,3.28]
[1753881361269,3.29,177.95,177.85,12.14039296]
[1753881361575,3.29,177.93,177.86,3.28]
[1753881361775,3.29,177.98,177.86,3.28]
[1753881362578,8.9111,177.91,177.87,3.28]
[1753881362777,3.29,177.93,177.86,3.28]
[1753881363282,3.29,177.89,177.86,3.28]
[1753881363469,3.29,177.89,177.83,110.94]
[1753881363669,3.29,177.96,177.85,8.86039296]
[1753881363975,3.29,177.96,177.89,3.28]
[1753881364277,3.29,177.93,177.89,3.28]
[1753881364475,8.86039296,178.01,177.89,3.28]
[1753881364682,3.29,177.93,177.89,3.28]
[1753881365071,3.29,177.93,177.9,3.28]
[1753881365379,3.29,177.96,177.9,3.28]
[1753881366279,8.86039296,178.01,177.9,3.28]
[1753881366486,3.29,177.94,177.9,3.28]
[1753881367180,3.29,178.0,177.9,3.28]
[1753881367484,3.29,177.98,177.88,8.86039296]
[1753881367684,8.9096,177.95,177.88,8.86039296]
[1753881367886,3.29,177.95,177.88,8.86039296]
[1753881368180,3.29,177.93,177.81,14.48439296]
[1753881368381,8.86039296,177.91,177.8,3.28]
[1753881368681,5.6219,177.88,177.81,5.6238]
[1753881368878,3.29,177.88,177.82,3.28]
[1753881369385,5.6224,177.87,177.82,3.28]
[1753881369588,3.29,177.86,177.82,3.28]
[1753881369787,3.29,177.86,177.83,3.28]
[1753881369976,3.29,177.89,177.84,3.28]
[1753881370175,3.29,177.89,177.8,3.28]
[1753881370884,3.29,177.87,177.79,315.02]
[1753881371084,3.29,177.87,177.8,3.28]
[1753881371285,3.29,177.87,177.79,318.3]
[1753881371477,3.29,177.87,177.8,3.28]
[1753881371677,3.29,177.9,177.8,3.28]
[1753881372284,3.29,177.87,177.8,3.28]
[1753881373185,3.29,177.9,177.81,8.86039296]
[1753881373382,8.86039296,177.94,177.82,3.28]
[1753881373583,3.29,177.95,177.88,3.28]
[1753881373786,3.29,177.97,177.88,3.28]
[1753881374581,8.9078,178.01,177.95,5.6195]
[1753881374787,3.29,178.03,177.97,3.28]
[1753881374986,4.23195859,178.02,177.94,3.28]
[1753881375187,3.29,178.09,178.0,3.28]
[1753881375383,4.2320133,178.08,178.02,8.86039296]
[1753881375586,3.29,178.12,178.03,3.28]
[1753881376285,5.6152,178.1,178.03,3.28]
[1753881376893,5.6152,178.09,178.03,3.28]
[1753881377887,5.6156,178.08,178.04,3.28]
[1753881378087,5.6156,178.08,178.02,8.86039296]
[1753881378088,5.6156,178.08,178.05,3.28]
[1753881378282,8.86039296,178.13,178.01,3.28]
[1753881378792,3.29,178.12,178.01,3.28]
[1753881379093,3.29,178.12,178.0,3.28]
[1753881379293,3.29,178.11,178.0,3.28]
[1753881379481,3.29,178.11,178.02,8.86039296]
[1753881379681,8.86039296,178.11,177.99,3.28]
[1753881379885,3.29,178.1,177.99,3.28]
[1753881380084,5.6159,178.07,177.99,3.28]
[1753881380286,3.29,178.1,178.02,3.28]
[1753881380499,3.29,178.13,178.02,3.28]
[1753881380689,5.615,178.1,178.02,3.28]
[1753881380885,3.29,178.13,178.02,3.28]
[1753881381087,3.29,178.13,178.05,3.28]
[1753881381284,3.29,178.16,178.05,3.28]
[1753881381591,3.29,178.14,178.05,3.28]
[1753881381794,3.29,178.14,178.03,3.28]
[1753881381795,3.29,178.1,178.03,3.28]
[1753881382091,3.29,178.13,178.03,3.28]
[1753881382288,3.29,178.07,178.0,3.28]
[1753881382483,3.29,178.04,178.0,3.28]
[1753881382688,3.29,178.03,177.97,3.28]
[1753881382993,12.15039296,178.03,177.97,3.28]
[1753881383383,12.15039296,178.03,177.95,3.28]
[1753881384090,3.29,178.02,177.95,3.28]
[1753881384992,3.29,178.05,177.95,3.28]
[1753881385991,8.86039296,178.08,177.96,8.86039296]
[1753881386193,12.15039296,178.08,177.97,3.28]
[1753881386588,5.6171,178.04,177.97,3.28]
[1753881387284,5.6172,178.03,177.98,3.04]
[1753881387490,5.6172,178.03,177.96,8.86039296]
[1753881387491,5.6172,178.03,178.0,3.04]
[1753881387687,3.29,178.08,178.0,3.04]
[1753881387887,8.86039296,178.11,178.0,3.04]
[1753881388095,11.84039296,178.11,178.0,3.04]
[1753881388496,5.6168,178.05,178.0,3.04]
[1753881388996,11.84039296,178.11,178.0,3.04]
[1753881389297,5.6167,178.05,178.0,3.04]
[1753881389700,17.44640709,178.16,178.03,3.04]
[1753881389701,2.98,178.14,178.03,3.04]
[1753881390088,5.6148,178.11,178.05,5.6164]
[1753881390291,2.98,178.14,178.06,107.84]
[1753881390502,2.98,178.14,178.07,3.04]
[1753881391491,4.64242984,178.21,178.07,8.86039296]
[1753881391689,7.19615908,178.2,178.08,3.04]
[1753881391892,2.98,178.2,178.08,3.04]
[1753881392196,5.6133,178.16,178.1,11.90039296]
[1753881392500,2.98,178.2,178.11,3.04]
[1753881392900,8.86039296,178.21,178.11,3.04]
[1753881393098,2.98,178.2,178.11,3.04]
[1753881393298,5.6139,178.14,178.11,3.04]
[1753881393494,5.6139,178.14,178.12,3.04]
[1753881393801,5.6139,178.14,178.1,8.86039296]
[1753881393995,4.64242984,178.24,178.13,3.04]
[1753881394196,2.98,178.22,178.14,3.04]
[1753881394397,2.98,178.2,178.14,3.04]
[1753881394596,2.98,178.2,178.13,3.04]
[1753881394793,2.98,178.25,178.13,3.04]
[1753881395001,4.21728546,178.24,178.16,3.04]
[1753881395198,4.21947472,178.23,178.16,3.04]
[1753881395400,2.98,178.22,178.16,3.04]
[1753881396294,5.6133,178.16,178.14,3.04]
[1753881396497,8.86039296,178.18,178.09,3.04]
[1753881396700,8.86039296,178.15,178.07,314.6]
[1753881397000,2.98,178.14,178.04,107.82]
[1753881397192,4.22484631,178.13,178.04,3.04]
[1753881397391,2.98,178.14,178.04,3.04]
[1753881397392,4.22484631,178.12,178.04,3.04]
[1753881397598,2.98,178.14,178.04,3.04]
[1753881397799,4.22853581,178.13,178.04,3.04]
[1753881397990,2.98,178.14,178.06,11.90039296]
[1753881398190,2.98,178.17,178.07,3.04]
[1753881398391,4.22988963,178.16,178.07,3.04]
[1753881398600,4.22988963,178.15,178.07,5.6157]
[1753881398801,2.98,178.13,178.06,8.86039296]
[1753881399007,2.98,178.13,178.04,3.04]
[1753881399193,2.98,178.13,178.05,3.04]
[1753881399705,2.98,178.1,178.04,3.04]
[1753881399900,2.98,178.1,178.02,3.04]
[1753881400297,2.98,178.14,178.03,3.04]
[1753881400498,4.23291881,178.13,178.03,3.04]
[1753881400697,4.23291881,178.12,178.03,3.04]
[1753881400896,4.23291881,178.12,178.0,107.9]
[1753881400897,2.98,178.17,178.06,3.04]
[1753881401108,4.23206763,178.16,178.06,3.04]
[1753881401302,4.23206763,178.15,178.06,3.04]
[1753881401498,5.6138,178.14,178.1,3.04]
[1753881401695,5.6138,178.14,178.05,8.86039296]
[1753881401896,5.6138,178.14,178.13,3.04]
[1753881402102,5.6138,178.14,178.07,5.6158]
[1753881402103,5.6141,178.13,178.08,107.9]
[1753881402606,2.98,178.18,178.09,3.04]
[1753881402905,2.98,178.15,178.09,3.04]
[1753881403105,5.6146,178.12,178.08,107.9]
[1753881403305,2.98,178.15,178.09,3.04]
[1753881403499,5.6136,178.15,178.09,8.6552]
[1753881403696,2.98,178.19,178.1,3.04]
[1753881403896,4.23136872,178.18,178.11,8.86039296]
[1753881404100,2.98,178.19,178.12,3.04]
[1753881404299,4.2304533,178.18,178.12,3.04]
[1753881404500,2.98,178.22,178.12,3.04]
[1753881404701,2.98,178.25,178.15,3.04]
[1753881405002,4.22944762,178.24,178.15,3.04]
[1753881405202,4.22944762,178.23,178.16,107.84]
[1753881405402,5.6108,178.24,178.19,5.612]
[1753881405602,2.98,178.27,178.18,3.04]
[1753881405805,5.6103,178.25,178.2,5.6116]
[1753881406104,2.98,178.3,178.21,3.04]
[1753881406303,4.22453557,178.29,178.21,3.04]
[1753881406504,5.6099,178.26,178.22,3.04]
[1753881406706,2.98,178.3,178.23,3.04]
[1753881406908,5.61,178.26,178.23,3.04]
[1753881407107,2.98,178.3,178.24,3.04]
[1753881407305,4.2220483,178.29,178.24,3.04]
[1753881407507,11.84039296,178.34,178.22,107.78]
[1753881407704,2.98,178.32,178.22,3.04]
[1753881407905,12.80991291,178.31,178.25,5.61]
[1753881408109,2.98,178.34,178.25,3.04]
[1753881408313,4.21846381,178.33,178.25,3.04]
[1753881408508,5.6086,178.31,178.25,5.6102]
[1753881408706,2.98,178.34,178.27,3.04]
[1753881408911,4.21836786,178.33,178.27,3.04]
[1753881409208,11.84039296,178.36,178.28,3.04]
[1753881409515,5.609,178.29,178.24,8.86039296]
[1753881409706,8.589,178.29,178.24,8.86039296]
[1753881409907,2.98,178.29,178.26,3.04]
[1753881410106,2.98,178.35,178.27,3.04]
[1753881410309,2.98,178.33,178.27,3.04]
[1753881410516,2.98,178.33,178.24,8.86039296]
[1753881410811,2.98,178.32,178.28,3.04]
[1753881411010,2.98,178.32,178.29,3.04]
[1753881411209,3.93357885,178.37,178.24,8.86039296]
[1753881411508,2.98,178.34,178.31,3.04]
[1753881411715,3.93357885,178.37,178.27,8.86039296]
[1753881412009,2.98,178.34,178.29,3.04]
[1753881412312,2.98,178.33,178.1,314.54]
[1753881412518,2.98,178.32,178.21,3.04]
[1753881412811,2.98,178.29,178.21,3.04]
[1753881413210,8.86039296,178.27,178.18,3.04]
[1753881413413,2.98,178.23,178.15,3.04]
[1753881413615,2.98,178.2,178.12,3.04]
[1753881414917,4.64242984,178.27,178.12,3.04]
[1753881415117,2.98,178.23,178.13,8.86039296]
[1753881415413,2.98,178.23,178.14,3.04]
[1753881415912,2.98,178.26,178.18,3.04]
[1753881416307,8.86039296,178.31,178.18,3.04]
[1753881416509,2.98,178.29,178.21,3.04]
[1753881416707,4.18716734,178.28,178.21,3.04]
[1753881416921,2.98,178.29,178.21,3.04]
[1753881417121,5.6099,178.26,178.23,3.13]
[1753881417423,2.98,178.29,178.23,3.13]
[1753881417610,3.07,178.27,178.19,8.86039296]
[1753881417811,4.19228432,178.26,178.17,3.13]
[1753881418015,3.07,178.25,178.17,11.99039296]
[1753881418208,3.07,178.25,178.19,3.13]
[1753881418516,3.07,178.25,178.16,107.72]
[1753881418517,3.07,178.23,178.16,110.85]
[1753881418920,3.07,178.23,178.17,3.13]
[1753881419418,3.07,178.27,178.17,3.13]
[1753881419619,4.20210094,178.26,178.17,3.13]